fUST/lending_fUST_20250601
["ID","MTS","AMOUNT","RATE_DAILY","PERIOD"]
[363566853,1748770247086,-691.58,0.00018356,2]
[363566855,1748770247096,-687.88,0.00018356,2]
[363566857,1748770247105,-430.0,0.00018356,2]
[363566859,1748770247115,-1139.26,0.00018356,2]
[363566861,1748770247125,-430.0,0.00018356,2]
[363566863,1748770247135,-562.78,0.00018356,2]
[363566865,1748770247145,-503.99,0.00018356,2]
[363566867,1748770247154,-151.0,0.00018356,2]
[363566869,1748770247163,-430.0,0.00018356,2]
[363566871,1748770247173,-1378.54,0.00018356,2]
[363566873,1748770247183,-430.0,0.00018356,2]
[363566875,1748770247193,-430.0,0.00018356,2]
[363566877,1748770247203,-430.0,0.00018356,2]
[363566879,1748770247212,-430.0,0.00018356,2]
[363566881,1748770247225,-430.0,0.00018356,2]
[363566883,1748770247235,-151.0,0.00018356,2]
[363566885,1748770247244,-430.0,0.00018356,2]
[363566887,1748770247254,-614.97,0.00018356,2]
[363566889,1748770247263,-430.0,0.00018356,2]
[363566890,1748770247273,-430.0,0.00018356,2]
[363566892,1748770247283,-430.0,0.00018356,2]
[363566894,1748770247292,-430.0,0.00018356,2]
[363566896,1748770247302,-430.0,0.00018356,2]
[363566898,1748770247311,-430.0,0.00018356,2]
[363566900,1748770247320,-807.09,0.00018356,2]
[363566902,1748770247330,-430.0,0.00018356,2]
[363566904,1748770247340,-430.0,0.00018356,2]
[363566906,1748770247350,-452.37,0.00018356,2]
[363566908,1748770247359,-430.0,0.00018356,2]
[363566910,1748770247368,-430.0,0.00018356,2]
[363566912,1748770247378,-430.0,0.00018356,2]
[363566914,1748770247388,-615.76,0.00018356,2]
[363566916,1748770247399,-430.0,0.00018356,2]
[363566918,1748770247409,-430.0,0.00018356,2]
[363566919,1748770247418,-1397.15,0.00018356,2]
[363566921,1748770247428,-12878.56,0.00018356,2]
[363566923,1748770247438,-430.0,0.00018356,2]
[363566925,1748770247447,-430.0,0.00018356,2]
[363566927,1748770247457,-592.13,0.00018356,2]
[363566929,1748770247466,-248.739943,0.00018356,2]
[363566931,1748770247477,-1526.316205,0.00018356,2]
[363566933,1748770247487,-248.739943,0.00018356,2]
[363566935,1748770247497,-1526.316205,0.00018356,2]
[363566937,1748770247507,-895.25,0.00018356,2]
[363566939,1748770247516,-238.65737344,0.00018356,2]
[363566941,1748770247526,-430.0,0.00018356,2]
[363566943,1748770247535,-708.81,0.00018356,2]
[363566945,1748770247544,-430.0,0.00018356,2]
[363566947,1748770247553,-594.338144,0.00018373,2]
[363566949,1748770247563,-843.25276144,0.00018383,2]
[363566951,1748770247573,-837.24713868,0.00018393,2]
[363566953,1748770247583,-258.91856938,0.00018495,2]
[363566955,1748770247592,-500.0,0.00018523,2]
[363566957,1748770247603,-800.0,0.00018542,2]
[363566959,1748770247612,-151.0,0.0001863,2]
[363566961,1748770247622,-151.0,0.0001863,2]
[363566963,1748770247632,-151.0,0.0001863,2]
[363566965,1748770247641,-555.858,0.0001863,2]
[363566967,1748770247651,-430.0,0.0001863,2]
[363566969,1748770247660,-151.0,0.0001863,2]
[363566970,1748770247669,-151.0,0.0001863,2]
[363566972,1748770247679,-221.750374,0.0001863,2]
[363566974,1748770247688,-151.0,0.0001863,2]
[363566976,1748770247698,-430.0,0.0001863,2]
[363566978,1748770247708,-482.15,0.0001863,2]
[363566980,1748770247717,-151.0,0.0001863,2]
[363566982,1748770247728,-430.0,0.0001863,2]
[363566984,1748770247738,-430.0,0.0001863,2]
[363566986,1748770247748,-1703.33,0.0001863,2]
[363566988,1748770247758,-151.0,0.0001863,2]
[363566990,1748770247767,-430.0,0.0001863,2]
[363566992,1748770247777,-151.0,0.0001863,2]
[363566994,1748770247786,-430.0,0.0001863,2]
[363566996,1748770247796,-430.0,0.0001863,2]
[363566997,1748770247806,-866.2,0.0001863,2]
[363566999,1748770247816,-430.0,0.0001863,2]
[363567001,1748770247826,-1626.01,0.0001863,2]
[363567003,1748770247836,-691.58,0.0001863,2]
[363567005,1748770247845,-687.88,0.0001863,2]
[363567007,1748770247855,-430.0,0.0001863,2]
[363567009,1748770247864,-1139.26,0.0001863,2]
[363567011,1748770247874,-430.0,0.0001863,2]
[363567013,1748770247883,-562.78,0.0001863,2]
[363567015,1748770247893,-503.99,0.0001863,2]
[363567017,1748770247903,-430.0,0.0001863,2]
[363567019,1748770247912,-1378.54,0.0001863,2]
[363567021,1748770247922,-430.0,0.0001863,2]
[363567023,1748770247932,-430.0,0.0001863,2]
[363567025,1748770247941,-430.0,0.0001863,2]
[363567027,1748770247953,-430.0,0.0001863,2]
[363567029,1748770247962,-430.0,0.0001863,2]
[363567030,1748770247971,-430.0,0.0001863,2]
[363567032,1748770247983,-614.97,0.0001863,2]
[363567034,1748770247994,-430.0,0.0001863,2]
[363567036,1748770248004,-430.0,0.0001863,2]
[363567038,1748770248014,-430.0,0.0001863,2]
[363567040,1748770248024,-430.0,0.0001863,2]
[363567042,1748770248034,-430.0,0.0001863,2]
[363567044,1748770248045,-158.79,0.0001863,2]
[363567046,1748770248055,-807.09,0.0001863,2]
[363567048,1748770248065,-430.0,0.0001863,2]
[363567050,1748770248075,-430.0,0.0001863,2]
[363567052,1748770248085,-430.0,0.0001863,2]
[363567054,1748770248094,-430.0,0.0001863,2]
[363567056,1748770248104,-430.0,0.0001863,2]
[363567058,1748770248113,-615.76,0.0001863,2]
[363567060,1748770248123,-430.0,0.0001863,2]
[363567061,1748770248133,-430.0,0.0001863,2]
[363567063,1748770248143,-1397.15,0.0001863,2]
[363567065,1748770248152,-12878.56,0.0001863,2]
[363567067,1748770248162,-430.0,0.0001863,2]
[363567069,1748770248172,-430.0,0.0001863,2]
[363567071,1748770248183,-531.055359,0.0001863,2]
[363567073,1748770248193,-592.13,0.0001863,2]
[363567075,1748770248202,-531.055359,0.0001863,2]
[363567077,1748770248212,-359.960833,0.0001863,2]
[363567079,1748770248222,-895.25,0.0001863,2]
[363567081,1748770248232,-359.960833,0.0001863,2]
[363567083,1748770248242,-430.0,0.0001863,2]
[363567085,1748770248253,-708.81,0.0001863,2]
[363567087,1748770248263,-430.0,0.0001863,2]
[363567089,1748770248273,-843.25276144,0.00018659,2]
[363567091,1748770248283,-151.0,0.00018728,2]
[363567093,1748770248293,-400.0,0.000188,2]
[363567095,1748770248304,-3310.05444997,0.000189,2]
[363567097,1748770248313,-151.0,0.00018904,2]
[363567099,1748770248323,-345.077216,0.00018904,2]
[363567101,1748770248333,-345.077216,0.00018904,2]
[363567103,1748770248343,-876.284792,0.00018904,2]
[363567105,1748770248353,-876.284792,0.00018904,2]
[363567107,1748770248362,-151.0,0.00018904,2]
[363567109,1748770248372,-603.885838,0.00018904,2]
[363567111,1748770248382,-603.885838,0.00018904,2]
[363567113,1748770248391,-430.0,0.00018904,2]
[363567115,1748770248401,-192.102102,0.00018904,2]
[363567117,1748770248410,-192.102102,0.00018904,2]
[363567119,1748770248419,-430.0,0.00018904,2]
[363567120,1748770248429,-169.196033,0.00018904,2]
[363567122,1748770248439,-169.196033,0.00018904,2]
[363567124,1748770248448,-151.0,0.00018904,2]
[363567126,1748770248458,-151.0,0.00018904,2]
[363567128,1748770248467,-482.15,0.00018904,2]
[363567130,1748770248478,-151.0,0.00018904,2]
[363567132,1748770248488,-151.0,0.00018904,2]
[363567134,1748770248498,-151.0,0.00018904,2]
[363567136,1748770248508,-340.17,0.00018904,2]
[363567138,1748770248519,-430.0,0.00018904,2]
[363567139,1748770248529,-1703.33,0.00018904,2]
[363567141,1748770248539,-430.0,0.00018904,2]
[363567143,1748770248549,-430.0,0.00018904,2]
[363567145,1748770248560,-866.2,0.00018904,2]
[363567147,1748770248570,-430.0,0.00018904,2]
[363567149,1748770248579,-1626.01,0.00018904,2]
[363567151,1748770248589,-691.58,0.00018904,2]
[363567153,1748770248599,-687.88,0.00018904,2]
[363567154,1748770248609,-430.0,0.00018904,2]
[363567156,1748770248619,-1139.26,0.00018904,2]
[363567158,1748770248629,-430.0,0.00018904,2]
[363567160,1748770248639,-562.78,0.00018904,2]
[363567162,1748770248649,-503.99,0.00018904,2]
[363567164,1748770248660,-430.0,0.00018904,2]
[363567166,1748770248669,-1378.54,0.00018904,2]
[363567176,1748770248776,-430.0,0.00018904,2]
[363567178,1748770248787,-430.0,0.00018904,2]
[363567180,1748770248798,-496.57,0.00018904,2]
[363567182,1748770248808,-430.0,0.00018904,2]
[363567184,1748770248819,-152.476461,0.00018904,2]
[363567186,1748770248829,-430.0,0.00018904,2]
[363567188,1748770248841,-614.97,0.00018904,2]
[363567190,1748770248852,-430.0,0.00018904,2]
[363567192,1748770248862,-430.0,0.00018904,2]
[363567194,1748770248873,-430.0,0.00018904,2]
[363567196,1748770248883,-430.0,0.00018904,2]
[363567198,1748770248894,-807.09,0.00018904,2]
[363567200,1748770248905,-204.98,0.00018904,2]
[363567202,1748770248915,-430.0,0.00018904,2]
[363567204,1748770248925,-430.0,0.00018904,2]
[363567205,1748770248936,-430.0,0.00018904,2]
[363567207,1748770248947,-430.0,0.00018904,2]
[363567210,1748770248962,-615.76,0.00018904,2]
[363567212,1748770248974,-430.0,0.00018904,2]
[363567214,1748770248984,-430.0,0.00018904,2]
[363567216,1748770248995,-1397.15,0.00018904,2]
[363567217,1748770249006,-12878.56,0.00018904,2]
[363567219,1748770249017,-430.0,0.00018904,2]
[363567221,1748770249028,-430.0,0.00018904,2]
[363567223,1748770249039,-592.13,0.00018904,2]
[363567225,1748770249050,-248.739943,0.00018904,2]
[363567228,1748770249060,-248.739943,0.00018904,2]
[363567230,1748770249071,-895.25,0.00018904,2]
[363567231,1748770249081,-708.81,0.00018904,2]
[363567233,1748770249090,-430.0,0.00018904,2]
[363567235,1748770249100,-430.0,0.00018904,2]
[363567237,1748770249110,-843.25276144,0.00018934,2]
[363567239,1748770249120,-500.0,0.0001897,2]
[363567241,1748770249130,-152.866879,0.00018974,2]
[363567243,1748770249140,-153.731127,0.00018974,2]
[363567245,1748770249150,-70257.87909829,0.00018985,2]
[363567247,1748770249159,-238.416365,0.00018985,2]
[363567249,1748770249169,-151.0,0.00018985,2]
[363567251,1748770249179,-151.0,0.00018985,2]
[363567253,1748770249188,-151.0,0.00018985,2]
[363567255,1748770249198,-151.0,0.00018985,2]
[363567257,1748770249208,-151.0,0.00018985,2]
[363567259,1748770249218,-151.0,0.00018985,2]
[363567260,1748770249229,-1074.688167,0.00018985,2]
[363567262,1748770249239,-1074.688167,0.00018985,2]
[363567264,1748770249248,-151.0,0.00018985,2]
[363567266,1748770249257,-151.0,0.00018985,2]
[363567268,1748770249267,-151.0,0.00018985,2]
[363567270,1748770249277,-151.0,0.00018985,2]
[363567272,1748770249286,-531.055359,0.00018985,2]
[363567274,1748770249297,-1526.316205,0.00018985,2]
[363567276,1748770249308,-531.055359,0.00018985,2]
[363567278,1748770249318,-359.960833,0.00018985,2]
[363567280,1748770249329,-1526.316205,0.00018985,2]
[363567281,1748770249339,-359.960833,0.00018985,2]
[363567283,1748770249349,-6303.48788126,0.00019,20]
[363567285,1748770249359,-157.13377087,0.00019,20]
[363567287,1748770249369,-342.48662,0.00019002,2]
[363567289,1748770249378,-342.48662,0.00019002,2]
[363567291,1748770249388,-151.0,0.00019002,2]
[363567293,1748770249397,-345.077216,0.00019002,2]
[363567295,1748770249407,-345.077216,0.00019002,2]
[363567297,1748770249416,-876.284792,0.00019002,2]
[363567299,1748770249426,-876.284792,0.00019002,2]
[363567301,1748770249435,-224.247146,0.00019078,2]
[363567302,1748770249445,-837.24713868,0.00019078,2]
[363567304,1748770249455,-223.0315306,0.00019165,2]
[363567306,1748770249465,-173.65,0.00019177,2]
[363567308,1748770249477,-173.65,0.00019177,2]
[363567310,1748770249487,-151.0,0.00019177,2]
[363567312,1748770249497,-151.0,0.00019177,2]
[363567314,1748770249508,-153.04198,0.00019177,2]
[363567316,1748770249517,-153.04198,0.00019177,2]
[363567318,1748770249527,-151.0,0.00019177,2]
[363567320,1748770249536,-603.885838,0.00019177,2]
[363567322,1748770249546,-603.885838,0.00019177,2]
[363567323,1748770249556,-192.102102,0.00019177,2]
[363567325,1748770249565,-192.102102,0.00019177,2]
[363567327,1748770249575,-151.0,0.00019178,2]
[363567329,1748770249584,-430.0,0.00019178,2]
[363567331,1748770249593,-430.0,0.00019178,2]
[363567333,1748770249603,-169.196033,0.00019178,2]
[363567335,1748770249613,-169.196033,0.00019178,2]
[363567337,1748770249622,-151.0,0.00019178,2]
[363567339,1748770249631,-151.0,0.00019178,2]
[363567341,1748770249641,-482.15,0.00019178,2]
[363567343,1748770249651,-151.0,0.00019178,2]
[363567345,1748770249662,-151.0,0.00019178,2]
[363567347,1748770249672,-430.0,0.00019178,2]
[363567348,1748770249682,-1703.33,0.00019178,2]
[363567349,1748770249691,-430.0,0.00019178,2]
[363567350,1748770249701,-430.0,0.00019178,2]
[363567351,1748770249710,-866.2,0.00019178,2]
[363567352,1748770249720,-430.0,0.00019178,2]
[363567353,1748770249733,-1626.01,0.00019178,2]
[363567354,1748770249743,-691.58,0.00019178,2]
[363567355,1748770249752,-687.88,0.00019178,2]
[363567356,1748770249762,-430.0,0.00019178,2]
[363567357,1748770249771,-1139.26,0.00019178,2]
[363567358,1748770249781,-430.0,0.00019178,2]
[363567359,1748770249791,-562.78,0.00019178,2]
[363567360,1748770249800,-503.99,0.00019178,2]
[363567361,1748770249810,-430.0,0.00019178,2]
[363567363,1748770249820,-1378.54,0.00019178,2]
[363567366,1748770249830,-430.0,0.00019178,2]
[363567367,1748770249839,-430.0,0.00019178,2]
[363567369,1748770249849,-430.0,0.00019178,2]
[363567371,1748770249859,-430.0,0.00019178,2]
[363567373,1748770249869,-614.97,0.00019178,2]
[363567376,1748770249879,-430.0,0.00019178,2]
[363567377,1748770249889,-430.0,0.00019178,2]
[363567379,1748770249899,-430.0,0.00019178,2]
[363567381,1748770249909,-430.0,0.00019178,2]
[363567384,1748770249919,-807.09,0.00019178,2]
[363567386,1748770249929,-430.0,0.00019178,2]
[363567387,1748770249938,-430.0,0.00019178,2]
[363567390,1748770249950,-430.0,0.00019178,2]
[363567391,1748770249961,-430.0,0.00019178,2]
[363567394,1748770249976,-615.76,0.00019178,2]
[363567396,1748770249987,-430.0,0.00019178,2]
[363567398,1748770249996,-1397.15,0.00019178,2]
[363567400,1748770250006,-12878.56,0.00019178,2]
[363567402,1748770250017,-430.0,0.00019178,2]
[363567404,1748770250027,-430.0,0.00019178,2]
[363567406,1748770250038,-592.13,0.00019178,2]
[363567408,1748770250049,-248.739943,0.00019178,2]
[363567410,1748770250059,-248.739943,0.00019178,2]
[363567412,1748770250069,-895.25,0.00019178,2]
[363567414,1748770250078,-430.0,0.00019178,2]
[363567416,1748770250088,-708.81,0.00019178,2]
[363567418,1748770250097,-430.0,0.00019178,2]
[363567420,1748770250107,-151.0,0.00019178,2]
[363567422,1748770250116,-161.030024,0.00019178,2]
[363567424,1748770250125,-843.25276144,0.0001921,2]
[363567426,1748770250135,-1664.56,0.00019223,2]
[363567427,1748770250145,-156.587,0.00019233,2]
[363567429,1748770250154,-708.0,0.00019252,2]
[363567431,1748770250164,-2227.0,0.00019252,2]
[363567433,1748770250174,-406.0,0.00019252,2]
[363567435,1748770250184,-405.0,0.00019252,2]
[363567437,1748770250194,-162.380719,0.00019288,2]
[363567440,1748770250204,-168.3888056,0.00019343,2]
[363567442,1748770250215,-174.61919141,0.00019398,2]
[363567444,1748770250225,-342.48662,0.00019452,2]
[363567446,1748770250235,-342.48662,0.00019452,2]
[363567448,1748770250245,-151.0,0.00019452,2]
[363567450,1748770250255,-151.0,0.00019452,2]
[363567451,1748770250264,-475.959135,0.00019452,2]
[363567453,1748770250274,-475.959135,0.00019452,2]
[363567455,1748770250283,-161.262007,0.00019452,2]
[363567457,1748770250293,-161.262007,0.00019452,2]
[363567459,1748770250303,-299.041725,0.00019452,2]
[363567461,1748770250313,-299.041725,0.00019452,2]
[363567463,1748770250322,-430.0,0.00019452,2]
[363567465,1748770250332,-310.83896593,0.00019452,2]
[363567467,1748770250341,-482.15,0.00019452,2]
[363567469,1748770250351,-430.0,0.00019452,2]
[363567471,1748770250361,-1703.33,0.00019452,2]
[363567473,1748770250370,-430.0,0.00019452,2]
[363567475,1748770250380,-430.0,0.00019452,2]
[363567477,1748770250390,-866.2,0.00019452,2]
[363567479,1748770250400,-430.0,0.00019452,2]
[363567481,1748770250409,-1626.01,0.00019452,2]
[363567483,1748770250419,-691.58,0.00019452,2]
[363567485,1748770250428,-687.88,0.00019452,2]
[363567487,1748770250439,-430.0,0.00019452,2]
[363567489,1748770250449,-1139.26,0.00019452,2]
[363567491,1748770250458,-562.78,0.00019452,2]
[363567493,1748770250467,-503.99,0.00019452,2]
[363567495,1748770250481,-430.0,0.00019452,2]
[363567497,1748770250491,-1378.54,0.00019452,2]
[363567499,1748770250501,-430.0,0.00019452,2]
[363567501,1748770250511,-430.0,0.00019452,2]
[363567503,1748770250521,-430.0,0.00019452,2]
[363567505,1748770250531,-430.0,0.00019452,2]
[363567507,1748770250541,-614.97,0.00019452,2]
[363567509,1748770250551,-430.0,0.00019452,2]
[363567511,1748770250562,-430.0,0.00019452,2]
[363567513,1748770250572,-309.39793586,0.00019452,2]
[363567515,1748770250582,-555.2919188,0.00019452,2]
[363567517,1748770250592,-807.09,0.00019452,2]
[363567519,1748770250601,-430.0,0.00019452,2]
[363567521,1748770250611,-430.0,0.00019452,2]
[363567523,1748770250620,-430.0,0.00019452,2]
[363567525,1748770250629,-430.0,0.00019452,2]
[363567527,1748770250639,-615.76,0.00019452,2]
[363567529,1748770250649,-430.0,0.00019452,2]
[363567531,1748770250659,-1397.15,0.00019452,2]
[363567533,1748770250668,-12878.56,0.00019452,2]
[363567535,1748770250678,-430.0,0.00019452,2]
[363567537,1748770250688,-430.0,0.00019452,2]
[363567539,1748770250698,-592.13,0.00019452,2]
[363567553,1748770250825,-895.25,0.00019452,2]
[363567555,1748770250835,-708.81,0.00019452,2]
[363567557,1748770250845,-430.0,0.00019452,2]
[363567559,1748770250856,-430.0,0.00019452,2]
[363567561,1748770250866,-181.08010149,0.00019453,2]
[363567564,1748770250876,-843.25276144,0.00019486,2]
[363567566,1748770250886,-152.963575,0.00019489,2]
[363567568,1748770250896,-173.65,0.00019489,2]
[363567570,1748770250906,-173.65,0.00019489,2]
[363567572,1748770250916,-151.0,0.00019489,2]
[363567574,1748770250925,-151.0,0.00019489,2]
[363567576,1748770250935,-153.04198,0.00019489,2]
[363567578,1748770250946,-153.04198,0.00019489,2]
[363567580,1748770250955,-150.0,0.00019489,2]
[363567582,1748770250966,-187.78006525,0.00019508,2]
[363567584,1748770250977,-309.12956925,0.00019563,2]
[363567586,1748770250987,-151.0,0.000196,2]
[363567588,1748770250996,-500.0,0.00019619,2]
[363567590,1748770251006,-587.0,0.00019619,2]
[363567592,1748770251016,-151.0,0.00019726,2]
[363567593,1748770251028,-345.077216,0.00019726,2]
[363567595,1748770251038,-345.077216,0.00019726,2]
[363567597,1748770251048,-876.284792,0.00019726,2]
[363567599,1748770251058,-876.284792,0.00019726,2]
[363567601,1748770251067,-151.0,0.00019726,2]
[363567603,1748770251078,-603.885838,0.00019726,2]
[363567606,1748770251087,-603.885838,0.00019726,2]
[363567607,1748770251097,-430.0,0.00019726,2]
[363567610,1748770251107,-192.102102,0.00019726,2]
[363567611,1748770251117,-192.102102,0.00019726,2]
[363567613,1748770251127,-482.15,0.00019726,2]
[363567616,1748770251138,-430.0,0.00019726,2]
[363567618,1748770251147,-1703.33,0.00019726,2]
[363567620,1748770251157,-151.0,0.00019726,2]
[363567622,1748770251166,-430.0,0.00019726,2]
[363567624,1748770251175,-151.0,0.00019726,2]
[363567626,1748770251185,-430.0,0.00019726,2]
[363567628,1748770251195,-866.2,0.00019726,2]
[363567630,1748770251205,-430.0,0.00019726,2]
[363567632,1748770251215,-1626.01,0.00019726,2]
[363567634,1748770251226,-691.58,0.00019726,2]
[363567636,1748770251235,-687.88,0.00019726,2]
[363567638,1748770251245,-430.0,0.00019726,2]
[363567640,1748770251255,-1139.26,0.00019726,2]
[363567642,1748770251265,-562.78,0.00019726,2]
[363567644,1748770251274,-503.99,0.00019726,2]
[363567646,1748770251284,-151.0,0.00019726,2]
[363567648,1748770251293,-430.0,0.00019726,2]
[363567650,1748770251302,-1378.54,0.00019726,2]
[363567652,1748770251311,-430.0,0.00019726,2]
[363567654,1748770251321,-473.18,0.00019726,2]
[363567656,1748770251330,-430.0,0.00019726,2]
[363567658,1748770251339,-430.0,0.00019726,2]
[363567660,1748770251349,-614.97,0.00019726,2]
[363567662,1748770251359,-430.0,0.00019726,2]
[363567664,1748770251369,-430.0,0.00019726,2]
[363567666,1748770251379,-807.09,0.00019726,2]
[363567668,1748770251388,-430.0,0.00019726,2]
[363567670,1748770251398,-430.0,0.00019726,2]
[363567672,1748770251407,-430.0,0.00019726,2]
[363567674,1748770251416,-430.0,0.00019726,2]
[363567676,1748770251426,-615.76,0.00019726,2]
[363567678,1748770251436,-430.0,0.00019726,2]
[363567680,1748770251444,-1397.15,0.00019726,2]
[363567682,1748770251454,-12878.56,0.00019726,2]
[363567684,1748770251463,-430.0,0.00019726,2]
[363567686,1748770251473,-430.0,0.00019726,2]
[363567688,1748770251484,-531.055359,0.00019726,2]
[363567689,1748770251493,-592.13,0.00019726,2]
[363567692,1748770251503,-248.739943,0.00019726,2]
[363567694,1748770251513,-1526.316205,0.00019726,2]
[363567696,1748770251522,-531.055359,0.00019726,2]
[363567698,1748770251532,-248.739943,0.00019726,2]
[363567700,1748770251542,-359.960833,0.00019726,2]
[363567702,1748770251552,-1526.316205,0.00019726,2]
[363567704,1748770251561,-895.25,0.00019726,2]
[363567706,1748770251571,-359.960833,0.00019726,2]
[363567708,1748770251581,-430.0,0.00019726,2]
[363567710,1748770251591,-708.81,0.00019726,2]
[363567712,1748770251602,-432.13,0.00019726,2]
[363567714,1748770251612,-151.0,0.00019738,2]
[363567716,1748770251622,-290.730391,0.00019738,2]
[363567718,1748770251632,-151.0,0.00019738,2]
[363567720,1748770251641,-160.0,0.00019738,3]
[363567722,1748770251651,-843.25276144,0.00019762,2]
[363567724,1748770251661,-601.88517194,0.0001978,2]
[363567726,1748770251671,-151.0,0.00019796,2]
[363567728,1748770251680,-151.0,0.000198,2]
[363567730,1748770251689,-29255.40012738,0.00019899,3]
[363567732,1748770251698,-160042.44108352,0.00019899,2]
[363567734,1748770251708,-64364.79576289,0.000199,2]
[363567736,1748770251717,-151.0,0.000199,2]
[363567738,1748770251728,-153.04198,0.000199,2]
[363567740,1748770251738,-153.04198,0.000199,2]
[363567742,1748770251748,-342.48662,0.000199,2]
[363567744,1748770251758,-342.48662,0.000199,2]
[363567746,1748770251767,-151.0,0.000199,2]
[363567748,1748770251777,-151.0,0.000199,2]
[363567749,1748770251786,-151.0,0.000199,2]
[363567751,1748770251796,-475.959135,0.000199,2]
[363567753,1748770251805,-475.959135,0.000199,2]
[363567755,1748770251815,-151.0,0.000199,2]
[363567757,1748770251825,-151.0,0.000199,2]
[363567759,1748770251834,-161.262007,0.000199,2]
[363567762,1748770251845,-161.262007,0.000199,2]
[363567763,1748770251854,-299.041725,0.000199,2]
[363567765,1748770251864,-299.041725,0.000199,2]
[363567768,1748770251874,-169.196033,0.000199,2]
[363567769,1748770251883,-169.196033,0.000199,2]
[363567772,1748770251893,-151.0,0.000199,2]
[363567774,1748770251903,-151.0,0.000199,2]
[363567776,1748770251913,-151.0,0.000199,2]
[363567778,1748770251923,-151.0,0.000199,2]
[363567779,1748770251933,-1074.688167,0.000199,2]
[363567782,1748770251943,-1074.688167,0.000199,2]
[363567783,1748770251954,-151.0,0.000199,2]
[363567786,1748770251964,-151.0,0.000199,2]
[363567788,1748770251975,-151.0,0.000199,2]
[363567790,1748770251986,-167.40932512,0.000199,2]
[363567792,1748770251996,-500.0,0.00019919,2]
[363567794,1748770252006,-5000.0,0.00019958,2]
[363567796,1748770252015,-345.077216,0.00019958,2]
[363567798,1748770252025,-345.077216,0.00019958,2]
[363567800,1748770252036,-876.284792,0.00019958,2]
[363567802,1748770252046,-876.284792,0.00019958,2]
[363567804,1748770252057,-151.0,0.00019981,2]
[363567806,1748770252067,-603.885838,0.00019981,2]
[363567808,1748770252076,-603.885838,0.00019981,2]
[363567810,1748770252087,-192.102102,0.00019981,2]
[363567812,1748770252097,-192.102102,0.00019981,2]
[363567814,1748770252107,-500.0,0.0002,2]
[363567816,1748770252116,-12924.65045302,0.0002,4]
[363567818,1748770252126,-777.0,0.0002,2]
[363567820,1748770252136,-777.0,0.0002,2]
[363567822,1748770252146,-777.0,0.0002,2]
[363567824,1748770252155,-777.0,0.0002,2]
[363567826,1748770252165,-777.0,0.0002,2]
[363567828,1748770252175,-777.0,0.0002,2]
[363567830,1748770252184,-777.0,0.0002,2]
[363567832,1748770252194,-777.0,0.0002,2]
[363567834,1748770252203,-777.0,0.0002,2]
[363567836,1748770252213,-777.0,0.0002,2]
[363567838,1748770252223,-10000.0,0.0002,2]
[363567840,1748770252235,-173.65,0.0002,2]
[363567842,1748770252244,-173.65,0.0002,2]
[363567844,1748770252253,-151.0,0.0002,2]